[Event "Titled Tuesday Blitz April 12 Early 2022"]
[White "Sanchez, Robert"]
[Black "Reprintsev, Alexander"]
[WhiteFideId "2034360"]
[BlackFideId "14100541"]
[WhiteElo "2390"]
[BlackElo "2108"]
[Result "0-1"]
[Round "09"]
[TimeControl "180+1"]
[Date "2022.04.13"]
[WhiteClock "0:00:25"]
[BlackClock "0:00:33"]

1. e4 {[%clk 0:03:00]}  d5 {[%clk 0:02:37]} 2. exd5 {[%clk 0:02:58]}  Qxd5 {[%clk 0:02:37]} 3. Nc3 {[%clk 0:02:59]}  Qa5 {[%clk 0:02:37]} 4. Nf3 {[%clk 0:03:00]}  Nc6 {[%clk 0:02:36]} 5. Be2 {[%clk 0:03:00]}  Bg4 {[%clk 0:02:36]} 6. O-O {[%clk 0:03:01]}  O-O-O {[%clk 0:02:35]} 7. d3 {[%clk 0:03:02]}  e6 {[%clk 0:02:34]} 8. a3 {[%clk 0:03:02]}  Bd6 {[%clk 0:02:33]} 9. Ne4 {[%clk 0:02:58]}  Be7 {[%clk 0:02:29]} 10. Bd2 {[%clk 0:02:57]}  Qb6 {[%clk 0:02:29]} 11. b4 {[%clk 0:02:54]}  Bxf3 {[%clk 0:02:25]} 12. Bxf3 {[%clk 0:02:54]}  Nd4 {[%clk 0:02:25]} 13. a4 {[%clk 0:02:48]}  f5 {[%clk 0:02:24]} 14. a5 {[%clk 0:02:03]}  Qc6 {[%clk 0:02:15]} 15. Ng5 {[%clk 0:01:56]}  Nxf3+ {[%clk 0:02:11]} 16. Nxf3 {[%clk 0:01:56]}  Bf6 {[%clk 0:02:11]} 17. Rb1 {[%clk 0:01:55]}  e5 {[%clk 0:02:10]} 18. b5 {[%clk 0:01:53]}  Qe6 {[%clk 0:02:10]} 19. b6 {[%clk 0:01:48]}  cxb6 {[%clk 0:01:58]} 20. axb6 {[%clk 0:01:48]}  a6 {[%clk 0:01:58]} 21. Re1 {[%clk 0:01:44]}  Ne7 {[%clk 0:01:56]} 22. Qe2 {[%clk 0:01:33]}  Nc6 {[%clk 0:01:55]} 23. Bc3 {[%clk 0:01:24]}  Rhe8 {[%clk 0:01:55]} 24. Qf1 {[%clk 0:01:15]}  g5 {[%clk 0:01:44]} 25. Nd2 {[%clk 0:01:14]}  e4 {[%clk 0:01:42]} 26. Bxf6 {[%clk 0:01:12]}  Qxf6 {[%clk 0:01:43]} 27. Nc4 {[%clk 0:01:08]}  exd3 {[%clk 0:01:41]} 28. Rxe8 {[%clk 0:01:03]}  Rxe8 {[%clk 0:01:40]} 29. Qxd3 {[%clk 0:01:02]}  Rd8 {[%clk 0:01:35]} 30. Qg3 {[%clk 0:00:56]}  f4 {[%clk 0:01:34]} 31. Qh3+ {[%clk 0:00:56]}  Rd7 {[%clk 0:01:27]} 32. Rd1 {[%clk 0:00:52]}  Nd4 {[%clk 0:01:27]} 33. c3 {[%clk 0:00:47]}  Nf5 {[%clk 0:01:18]} 34. Rxd7 {[%clk 0:00:40]}  Kxd7 {[%clk 0:01:18]} 35. Qxh7+ {[%clk 0:00:40]}  Ne7 {[%clk 0:01:14]} 36. Qd3+ {[%clk 0:00:38]}  Kc6 {[%clk 0:01:10]} 37. Qe4+ {[%clk 0:00:36]}  Kc5 {[%clk 0:01:05]} 38. h3 {[%clk 0:00:33]}  Nc6 {[%clk 0:00:54]} 39. g3 {[%clk 0:00:29]}  fxg3 {[%clk 0:00:52]} 40. fxg3 {[%clk 0:00:29]}  Qxc3 {[%clk 0:00:49]} 41. Ne3 {[%clk 0:00:28]}  Qd4 {[%clk 0:00:46]} 42. Qxd4+ {[%clk 0:00:23]}  Nxd4 {[%clk 0:00:46]} 43. h4 {[%clk 0:00:23]}  gxh4 {[%clk 0:00:45]} 44. g4 {[%clk 0:00:23]}  Kxb6 {[%clk 0:00:44]} 45. Kg2 {[%clk 0:00:23]}  Kc5 {[%clk 0:00:44]} 46. Kh3 {[%clk 0:00:23]}  Nf3 {[%clk 0:00:41]} 47. Ng2 {[%clk 0:00:21]}  b5 {[%clk 0:00:37]} 48. Nxh4 {[%clk 0:00:22]}  Nxh4 {[%clk 0:00:32]} 49. Kxh4 {[%clk 0:00:23]}  b4 {[%clk 0:00:32]} 50. g5 {[%clk 0:00:23]}  b3 {[%clk 0:00:33]} 51. g6 {[%clk 0:00:24]}  b2 {[%clk 0:00:33]} 52. g7 {[%clk 0:00:24]}  b1=Q {[%clk 0:00:34]} 53. g8=Q {[%clk 0:00:25]}  Qh1+ {[%clk 0:00:33]} 0-1


[Site "https://www.chess.com"]

[Event "Titled Tuesday Blitz April 12 Early 2022"]
[White "Shimanov, Aleksandr"]
[Black "Mekhitarian, Krikor Sevag"]
[WhiteFideId "4198603"]
[BlackFideId "2107660"]
[WhiteElo "2636"]
[BlackElo "2598"]
[Result "1-0"]
[Round "09"]
[TimeControl "180+1"]
[Date "2022.04.12"]
[WhiteClock "0:00:05"]
[BlackClock "0:00:01"]

1. d4 {[%clk 0:03:00]}  Nf6 {[%clk 0:02:59]} 2. Nc3 {[%clk 0:03:00]}  d5 {[%clk 0:02:48]} 3. Bf4 {[%clk 0:03:00]}  a6 {[%clk 0:02:39]} 4. e3 {[%clk 0:02:57]}  e6 {[%clk 0:02:39]} 5. Bd3 {[%clk 0:02:43]}  c5 {[%clk 0:02:39]} 6. dxc5 {[%clk 0:02:36]}  Bxc5 {[%clk 0:02:38]} 7. Nf3 {[%clk 0:02:37]}  Nc6 {[%clk 0:02:37]} 8. O-O {[%clk 0:02:37]}  Bd6 {[%clk 0:02:27]} 9. Bg5 {[%clk 0:02:26]}  h6 {[%clk 0:02:23]} 10. Bh4 {[%clk 0:02:26]}  Be7 {[%clk 0:02:15]} 11. Bg3 {[%clk 0:02:14]}  Nh5 {[%clk 0:02:06]} 12. e4 {[%clk 0:01:57]}  Nxg3 {[%clk 0:02:05]} 13. hxg3 {[%clk 0:01:58]}  dxe4 {[%clk 0:02:03]} 14. Nxe4 {[%clk 0:01:55]}  O-O {[%clk 0:02:01]} 15. Qe2 {[%clk 0:01:49]}  Qc7 {[%clk 0:01:39]} 16. c3 {[%clk 0:01:42]}  Bd7 {[%clk 0:01:27]} 17. Qe3 {[%clk 0:01:38]}  Rad8 {[%clk 0:01:25]} 18. g4 {[%clk 0:01:12]}  Ne5 {[%clk 0:01:15]} 19. Nxe5 {[%clk 0:01:11]}  Qxe5 {[%clk 0:01:16]} 20. f4 {[%clk 0:01:12]}  Qc7 {[%clk 0:01:07]} 21. g5 {[%clk 0:01:11]}  Bc6 {[%clk 0:00:56]} 22. gxh6 {[%clk 0:00:49]}  g6 {[%clk 0:00:56]} 23. Kh2 {[%clk 0:00:21]}  Rd5 {[%clk 0:00:54]} 24. Be2 {[%clk 0:00:19]}  Kh7 {[%clk 0:00:41]} 25. Rad1 {[%clk 0:00:18]}  Rfd8 {[%clk 0:00:40]} 26. Rxd5 {[%clk 0:00:19]}  exd5 {[%clk 0:00:30]} 27. Nf2 {[%clk 0:00:14]}  Bg5 {[%clk 0:00:22]} 28. Ng4 {[%clk 0:00:12]}  Re8 {[%clk 0:00:12]} 29. Qd2 {[%clk 0:00:12]}  Bxh6 {[%clk 0:00:09]} 30. Nf6+ {[%clk 0:00:11]}  Kh8 {[%clk 0:00:09]} 31. Nxe8 {[%clk 0:00:11]}  Bxe8 {[%clk 0:00:09]} 32. Qxd5 {[%clk 0:00:11]}  Bxf4+ {[%clk 0:00:06]} 33. Kh1 {[%clk 0:00:11]}  Bc6 {[%clk 0:00:07]} 34. Qd4+ {[%clk 0:00:10]}  Be5 {[%clk 0:00:08]} 35. Qh4+ {[%clk 0:00:09]}  Kg7 {[%clk 0:00:08]} 36. Bc4 {[%clk 0:00:10]}  f5 {[%clk 0:00:07]} 37. Re1 {[%clk 0:00:08]}  Bf6 {[%clk 0:00:07]} 38. Qf2 {[%clk 0:00:07]}  b5 {[%clk 0:00:05]} 39. Be2 {[%clk 0:00:06]}  Be4 {[%clk 0:00:04]} 40. Bf3 {[%clk 0:00:06]}  Qf4 {[%clk 0:00:05]} 41. Rf1 {[%clk 0:00:05]}  Bh4 {[%clk 0:00:03]} 42. Qd4+ {[%clk 0:00:05]}  Bf6 {[%clk 0:00:03]} 43. Qf2 {[%clk 0:00:05]}  Bh4 {[%clk 0:00:01]} 44. Qa7+ {[%clk 0:00:05]}  Kh6 {[%clk 0:00:01]} 45. Kg1 {[%clk 0:00:05]} 1-0


[Site "https://www.chess.com"]

[Event "Titled Tuesday Blitz April 12 Early 2022"]
[White "Stribuk, Artiom"]
[Black "Harshavardhan G B"]
[WhiteFideId "13515659"]
[BlackFideId "25059009"]
[WhiteElo "2259"]
[BlackElo "1831"]
[Result "1-0"]
[Round "09"]
[TimeControl "180+1"]
[Date "2022.04.12"]
[WhiteClock "0:00:35"]
[BlackClock "0:00:51"]

1. d4 {[%clk 0:03:00]}  Nf6 {[%clk 0:02:58]} 2. c4 {[%clk 0:02:57]}  g6 {[%clk 0:02:58]} 3. Nc3 {[%clk 0:02:55]}  Bg7 {[%clk 0:02:58]} 4. e4 {[%clk 0:02:54]}  d6 {[%clk 0:02:59]} 5. h3 {[%clk 0:02:52]}  O-O {[%clk 0:02:58]} 6. Bg5 {[%clk 0:02:52]}  Na6 {[%clk 0:02:55]} 7. Bd3 {[%clk 0:02:50]}  e5 {[%clk 0:02:54]} 8. Nf3 {[%clk 0:02:46]}  Qe8 {[%clk 0:02:52]} 9. O-O {[%clk 0:02:40]}  exd4 {[%clk 0:02:33]} 10. Nxd4 {[%clk 0:02:24]}  Nc5 {[%clk 0:02:33]} 11. Re1 {[%clk 0:02:14]}  Bd7 {[%clk 0:02:22]} 12. Bc2 {[%clk 0:02:11]}  Bc6 {[%clk 0:02:16]} 13. Nd5 {[%clk 0:02:01]}  Bxd5 {[%clk 0:02:14]} 14. exd5 {[%clk 0:01:56]}  Qc8 {[%clk 0:02:07]} 15. b4 {[%clk 0:01:44]}  Na6 {[%clk 0:02:06]} 16. a3 {[%clk 0:01:43]}  Nd7 {[%clk 0:02:06]} 17. Bb3 {[%clk 0:01:36]}  Re8 {[%clk 0:01:57]} 18. Qd2 {[%clk 0:01:34]}  Nf8 {[%clk 0:01:15]} 19. Rxe8 {[%clk 0:01:26]}  Qxe8 {[%clk 0:01:16]} 20. Re1 {[%clk 0:01:26]}  Qc8 {[%clk 0:01:15]} 21. Re7 {[%clk 0:01:24]}  Nd7 {[%clk 0:01:06]} 22. Qf4 {[%clk 0:00:53]}  Ne5 {[%clk 0:01:01]} 23. Bf6 {[%clk 0:00:49]}  Bf8 {[%clk 0:00:58]} 24. Rxe5 {[%clk 0:00:50]}  dxe5 {[%clk 0:00:58]} 25. Bxe5 {[%clk 0:00:50]}  Be7 {[%clk 0:00:54]} 26. c5 {[%clk 0:00:48]}  Qe8 {[%clk 0:00:53]} 27. d6 {[%clk 0:00:44]}  cxd6 {[%clk 0:00:53]} 28. cxd6 {[%clk 0:00:45]}  Bd8 {[%clk 0:00:53]} 29. d7 {[%clk 0:00:38]}  Qxd7 {[%clk 0:00:51]} 30. Qh6 {[%clk 0:00:35]} 1-0


[Site "https://www.chess.com"]

[Event "Titled Tuesday Blitz April 12 Early 2022"]
[White "Svane, Frederik"]
[Black "Manolache, Marius"]
[WhiteFideId "12923044"]
[BlackFideId "1201530"]
[WhiteElo "2459"]
[BlackElo "2364"]
[Result "1/2-1/2"]
[Round "09"]
[TimeControl "180+1"]
[Date "2022.04.12"]
[WhiteClock "0:00:03"]
[BlackClock "0:00:41"]

1. e4 {[%clk 0:03:00]}  c5 {[%clk 0:02:59]} 2. Nf3 {[%clk 0:03:01]}  e6 {[%clk 0:02:59]} 3. c3 {[%clk 0:02:59]}  Nf6 {[%clk 0:02:58]} 4. e5 {[%clk 0:02:59]}  Nd5 {[%clk 0:02:58]} 5. d4 {[%clk 0:02:59]}  cxd4 {[%clk 0:02:59]} 6. cxd4 {[%clk 0:03:00]}  d6 {[%clk 0:02:59]} 7. Bc4 {[%clk 0:02:55]}  Bd7 {[%clk 0:02:59]} 8. O-O {[%clk 0:02:45]}  Bc6 {[%clk 0:02:58]} 9. Qe2 {[%clk 0:02:39]}  Be7 {[%clk 0:02:54]} 10. Rd1 {[%clk 0:02:37]}  Nd7 {[%clk 0:02:49]} 11. exd6 {[%clk 0:02:37]}  Bxd6 {[%clk 0:02:49]} 12. Nc3 {[%clk 0:02:37]}  N7f6 {[%clk 0:02:47]} 13. Bg5 {[%clk 0:02:34]}  O-O {[%clk 0:02:41]} 14. Ne5 {[%clk 0:02:33]}  Be7 {[%clk 0:02:39]} 15. Rd3 {[%clk 0:02:29]}  Nxc3 {[%clk 0:02:31]} 16. bxc3 {[%clk 0:02:26]}  Bd5 {[%clk 0:02:29]} 17. Bb3 {[%clk 0:02:22]}  Bxb3 {[%clk 0:02:27]} 18. axb3 {[%clk 0:02:22]}  Nd5 {[%clk 0:02:25]} 19. Bd2 {[%clk 0:02:19]}  Bf6 {[%clk 0:02:23]} 20. c4 {[%clk 0:02:14]}  Ne7 {[%clk 0:02:23]} 21. Bb4 {[%clk 0:02:11]}  Re8 {[%clk 0:02:20]} 22. Rad1 {[%clk 0:01:41]}  Ng6 {[%clk 0:02:11]} 23. Nxg6 {[%clk 0:01:30]}  hxg6 {[%clk 0:02:08]} 24. Qe4 {[%clk 0:01:29]}  Qb6 {[%clk 0:02:02]} 25. Bc5 {[%clk 0:01:26]}  Qc6 {[%clk 0:01:58]} 26. Qg4 {[%clk 0:01:16]}  b5 {[%clk 0:01:47]} 27. h4 {[%clk 0:01:13]}  bxc4 {[%clk 0:01:45]} 28. bxc4 {[%clk 0:01:13]}  e5 {[%clk 0:01:38]} 29. h5 {[%clk 0:01:12]}  exd4 {[%clk 0:01:28]} 30. Bxd4 {[%clk 0:01:05]}  Bxd4 {[%clk 0:01:13]} 31. Rxd4 {[%clk 0:01:01]}  Qe6 {[%clk 0:01:02]} 32. hxg6 {[%clk 0:00:58]}  Qxg6 {[%clk 0:00:58]} 33. Qxg6 {[%clk 0:00:52]}  fxg6 {[%clk 0:00:58]} 34. Rd7 {[%clk 0:00:53]}  Rec8 {[%clk 0:00:55]} 35. Re1 {[%clk 0:00:49]}  Rxc4 {[%clk 0:00:54]} 36. Ree7 {[%clk 0:00:49]}  Rc6 {[%clk 0:00:53]} 37. Rxg7+ {[%clk 0:00:49]}  Kh8 {[%clk 0:00:53]} 38. Rh7+ {[%clk 0:00:49]}  Kg8 {[%clk 0:00:53]} 39. Rdg7+ {[%clk 0:00:48]}  Kf8 {[%clk 0:00:53]} 40. Kh2 {[%clk 0:00:25]}  a5 {[%clk 0:00:53]} 41. Kg3 {[%clk 0:00:16]}  a4 {[%clk 0:00:52]} 42. Kg4 {[%clk 0:00:09]}  Ra5 {[%clk 0:00:43]} 43. Rb7 {[%clk 0:00:04]}  Kg8 {[%clk 0:00:43]} 44. Rhg7+ {[%clk 0:00:04]}  Kh8 {[%clk 0:00:41]} 45. Rh7+ {[%clk 0:00:04]}  Kg8 {[%clk 0:00:41]} 46. Rbg7+ {[%clk 0:00:05]}  Kf8 {[%clk 0:00:41]} 47. Rf7+ {[%clk 0:00:04]}  Kg8 {[%clk 0:00:41]} 48. Rfg7+ {[%clk 0:00:03]}  Kf8 {[%clk 0:00:41]} 1/2-1/2


[Site "https://www.chess.com"]

[Event "Titled Tuesday Blitz April 12 Early 2022"]
[White "Tanenbaum, Zachary"]
[Black "Jumabayev, Rinat"]
[WhiteFideId "2060850"]
[BlackFideId "13702661"]
[WhiteElo "2168"]
[BlackElo "2561"]
[Result "0-1"]
[Round "09"]
[TimeControl "180+1"]
[Date "2022.04.12"]
[WhiteClock "0:00:07"]
[BlackClock "0:00:44"]

1. e4 {[%clk 0:02:59]}  c5 {[%clk 0:02:59]} 2. Nf3 {[%clk 0:02:59]}  d6 {[%clk 0:02:59]} 3. d4 {[%clk 0:03:00]}  cxd4 {[%clk 0:03:00]} 4. Nxd4 {[%clk 0:03:00]}  Nf6 {[%clk 0:03:01]} 5. Nc3 {[%clk 0:03:01]}  a6 {[%clk 0:03:01]} 6. Be3 {[%clk 0:03:01]}  e6 {[%clk 0:03:00]} 7. f3 {[%clk 0:03:01]}  b5 {[%clk 0:02:59]} 8. Qd2 {[%clk 0:03:02]}  b4 {[%clk 0:02:59]} 9. Nce2 {[%clk 0:03:02]}  e5 {[%clk 0:02:59]} 10. Nb3 {[%clk 0:03:01]}  Nc6 {[%clk 0:02:56]} 11. O-O-O {[%clk 0:03:00]}  Be6 {[%clk 0:02:56]} 12. Kb1 {[%clk 0:02:59]}  a5 {[%clk 0:02:49]} 13. g4 {[%clk 0:02:59]}  a4 {[%clk 0:02:49]} 14. Nbc1 {[%clk 0:03:00]}  d5 {[%clk 0:02:33]} 15. g5 {[%clk 0:02:58]}  d4 {[%clk 0:02:33]} 16. Bf2 {[%clk 0:02:52]}  Nd7 {[%clk 0:02:32]} 17. f4 {[%clk 0:02:51]}  b3 {[%clk 0:02:29]} 18. cxb3 {[%clk 0:02:49]}  axb3 {[%clk 0:02:29]} 19. a3 {[%clk 0:02:22]}  Bb4 {[%clk 0:02:16]} 20. axb4 {[%clk 0:02:01]}  Qc7 {[%clk 0:01:34]} 21. Nxd4 {[%clk 0:01:49]}  exd4 {[%clk 0:01:23]} 22. Ba6 {[%clk 0:00:49]}  Nxb4 {[%clk 0:01:07]} 23. Nd3 {[%clk 0:00:12]}  Qc2+ {[%clk 0:00:43]} 24. Qxc2 {[%clk 0:00:07]}  bxc2+ {[%clk 0:00:44]} 25. Kc1 {[%clk 0:00:07]}  cxd1=Q+ {[%clk 0:00:44]} 0-1


[Site "https://www.chess.com"]

[Event "Titled Tuesday Blitz April 12 Early 2022"]
[White "Tregubov, Pavel V."]
[Black "Fathy, Elameir"]
[WhiteFideId "4115341"]
[BlackFideId "10600396"]
[WhiteElo "2341"]
[BlackElo "2311"]
[Result "1-0"]
[Round "09"]
[TimeControl "180+1"]
[Date "2022.04.13"]
[WhiteClock "0:00:22"]
[BlackClock "0:00:02"]

1. e4 {[%clk 0:02:58]}  c6 {[%clk 0:02:33]} 2. Nf3 {[%clk 0:02:57]}  d5 {[%clk 0:02:33]} 3. Nc3 {[%clk 0:02:57]}  Bg4 {[%clk 0:02:32]} 4. h3 {[%clk 0:02:56]}  Bxf3 {[%clk 0:02:32]} 5. Qxf3 {[%clk 0:02:57]}  e6 {[%clk 0:02:33]} 6. g3 {[%clk 0:02:56]}  Nd7 {[%clk 0:02:31]} 7. d4 {[%clk 0:02:56]}  Bb4 {[%clk 0:02:22]} 8. Bg2 {[%clk 0:02:38]}  dxe4 {[%clk 0:02:19]} 9. Qxe4 {[%clk 0:02:38]}  Ngf6 {[%clk 0:02:19]} 10. Qd3 {[%clk 0:02:36]}  O-O {[%clk 0:02:11]} 11. O-O {[%clk 0:02:36]}  Bd6 {[%clk 0:02:00]} 12. Ne2 {[%clk 0:02:22]}  e5 {[%clk 0:01:51]} 13. Rd1 {[%clk 0:02:20]}  exd4 {[%clk 0:01:37]} 14. Nxd4 {[%clk 0:02:19]}  Ne5 {[%clk 0:01:09]} 15. Qb3 {[%clk 0:01:53]}  Qc7 {[%clk 0:00:40]} 16. Bg5 {[%clk 0:01:46]}  Rfd8 {[%clk 0:00:33]} 17. Nf5 {[%clk 0:01:22]}  Be7 {[%clk 0:00:24]} 18. Re1 {[%clk 0:01:18]}  Re8 {[%clk 0:00:08]} 19. Nxe7+ {[%clk 0:01:15]}  Qxe7 {[%clk 0:00:04]} 20. Kh1 {[%clk 0:00:54]}  h6 {[%clk 0:00:04]} 21. Bf4 {[%clk 0:00:49]}  Qc5 {[%clk 0:00:04]} 22. Qxb7 {[%clk 0:00:42]}  Rab8 {[%clk 0:00:04]} 23. Qc7 {[%clk 0:00:35]}  Ng6 {[%clk 0:00:03]} 24. Be3 {[%clk 0:00:24]}  Qxc2 {[%clk 0:00:03]} 25. b3 {[%clk 0:00:24]}  Nd5 {[%clk 0:00:02]} 26. Bxd5 {[%clk 0:00:23]}  cxd5 {[%clk 0:00:02]} 27. Qxc2 {[%clk 0:00:22]} 1-0


[Site "https://www.chess.com"]

[Event "Titled Tuesday Blitz April 12 Early 2022"]
[White "Vokhidov, Shamsiddin"]
[Black "Hess, Robert"]
[WhiteFideId "14204223"]
[BlackFideId "2022036"]
[WhiteElo "2611"]
[BlackElo "2557"]
[Result "1-0"]
[Round "09"]
[TimeControl "180+1"]
[Date "2022.04.12"]
[WhiteClock "0:00:16"]
[BlackClock "0:00:03"]

1. e4 {[%clk 0:02:56]}  g6 {[%clk 0:02:59]} 2. d4 {[%clk 0:02:55]}  Bg7 {[%clk 0:03:00]} 3. Nf3 {[%clk 0:02:56]}  d6 {[%clk 0:02:59]} 4. Nc3 {[%clk 0:02:56]}  a6 {[%clk 0:02:59]} 5. a4 {[%clk 0:02:56]}  Nd7 {[%clk 0:02:59]} 6. Be2 {[%clk 0:02:53]}  e6 {[%clk 0:02:51]} 7. O-O {[%clk 0:02:51]}  h6 {[%clk 0:02:51]} 8. a5 {[%clk 0:02:50]}  Ne7 {[%clk 0:02:51]} 9. Be3 {[%clk 0:02:50]}  O-O {[%clk 0:02:50]} 10. Qd2 {[%clk 0:02:50]}  Kh7 {[%clk 0:02:50]} 11. Rfe1 {[%clk 0:02:48]}  Nf6 {[%clk 0:02:37]} 12. h3 {[%clk 0:02:47]}  d5 {[%clk 0:02:32]} 13. Bd3 {[%clk 0:02:40]}  dxe4 {[%clk 0:02:28]} 14. Nxe4 {[%clk 0:02:41]}  Nfd5 {[%clk 0:02:23]} 15. c3 {[%clk 0:02:31]}  Nf5 {[%clk 0:01:59]} 16. Bf4 {[%clk 0:02:26]}  Nxf4 {[%clk 0:01:53]} 17. Qxf4 {[%clk 0:02:27]}  b6 {[%clk 0:01:36]} 18. h4 {[%clk 0:02:25]}  Kg8 {[%clk 0:01:16]} 19. Ng3 {[%clk 0:02:11]}  Bb7 {[%clk 0:00:50]} 20. Nxf5 {[%clk 0:02:05]}  gxf5 {[%clk 0:00:51]} 21. Ne5 {[%clk 0:01:54]}  c5 {[%clk 0:00:50]} 22. axb6 {[%clk 0:01:52]}  cxd4 {[%clk 0:00:44]} 23. cxd4 {[%clk 0:01:53]}  Qxb6 {[%clk 0:00:43]} 24. Re3 {[%clk 0:01:51]}  Rad8 {[%clk 0:00:34]} 25. Ra4 {[%clk 0:01:32]}  Rd5 {[%clk 0:00:12]} 26. Rg3 {[%clk 0:01:22]}  Kh8 {[%clk 0:00:12]} 27. Be2 {[%clk 0:01:10]}  Qxb2 {[%clk 0:00:07]} 28. Bh5 {[%clk 0:01:07]}  Rxe5 {[%clk 0:00:06]} 29. dxe5 {[%clk 0:01:04]}  Qxe5 {[%clk 0:00:04]} 30. Qxe5 {[%clk 0:01:01]}  Bxe5 {[%clk 0:00:05]} 31. Rb3 {[%clk 0:01:00]}  Bd5 {[%clk 0:00:05]} 32. Re3 {[%clk 0:00:58]}  Bf6 {[%clk 0:00:05]} 33. Rxa6 {[%clk 0:00:58]}  Bxh4 {[%clk 0:00:04]} 34. Bf3 {[%clk 0:00:52]}  Bxf3 {[%clk 0:00:03]} 35. Rxf3 {[%clk 0:00:53]}  Kg7 {[%clk 0:00:03]} 36. Rd3 {[%clk 0:00:51]}  Bg5 {[%clk 0:00:03]} 37. Rd7 {[%clk 0:00:51]}  Kg6 {[%clk 0:00:04]} 38. g3 {[%clk 0:00:50]}  h5 {[%clk 0:00:04]} 39. Kg2 {[%clk 0:00:48]}  h4 {[%clk 0:00:05]} 40. gxh4 {[%clk 0:00:46]}  Bxh4 {[%clk 0:00:06]} 41. Kf3 {[%clk 0:00:47]}  Bf6 {[%clk 0:00:06]} 42. Raa7 {[%clk 0:00:46]}  Be5 {[%clk 0:00:06]} 43. Rab7 {[%clk 0:00:46]}  Bf6 {[%clk 0:00:07]} 44. Kf4 {[%clk 0:00:46]}  Bg5+ {[%clk 0:00:07]} 45. Kf3 {[%clk 0:00:46]}  Bf6 {[%clk 0:00:07]} 46. Ke3 {[%clk 0:00:47]}  Bg5+ {[%clk 0:00:07]} 47. Ke2 {[%clk 0:00:47]}  Bf6 {[%clk 0:00:08]} 48. Rd1 {[%clk 0:00:46]}  Be5 {[%clk 0:00:08]} 49. Ke3 {[%clk 0:00:44]}  Ra8 {[%clk 0:00:06]} 50. Rdd7 {[%clk 0:00:41]}  Rf8 {[%clk 0:00:05]} 51. f4 {[%clk 0:00:40]}  Bf6 {[%clk 0:00:04]} 52. Rd1 {[%clk 0:00:39]}  Bd8 {[%clk 0:00:02]} 53. Kf3 {[%clk 0:00:34]}  Kf6 {[%clk 0:00:03]} 54. Rdd7 {[%clk 0:00:34]}  Ba5 {[%clk 0:00:03]} 55. Ke3 {[%clk 0:00:33]}  Bc3 {[%clk 0:00:03]} 56. Kd3 {[%clk 0:00:33]}  Be1 {[%clk 0:00:03]} 57. Rb1 {[%clk 0:00:30]}  Bg3 {[%clk 0:00:03]} 58. Ke3 {[%clk 0:00:30]}  Ra8 {[%clk 0:00:03]} 59. Rbb7 {[%clk 0:00:18]}  Ra3+ {[%clk 0:00:03]} 60. Kd4 {[%clk 0:00:17]}  Bxf4 {[%clk 0:00:03]} 61. Rxf7+ {[%clk 0:00:17]}  Kg5 {[%clk 0:00:04]} 62. Rg7+ {[%clk 0:00:17]}  Kh4 {[%clk 0:00:04]} 63. Rg6 {[%clk 0:00:16]}  e5+ {[%clk 0:00:03]} 64. Kd5 {[%clk 0:00:17]}  Bg3 {[%clk 0:00:03]} 65. Rh7# {[%clk 0:00:16]} 1-0


[Site "https://www.chess.com"]

[Event "Titled Tuesday Blitz April 12 Early 2022"]
[White "Weetik, Vjacheslav"]
[Black "Hoang, Thi Bao Tram"]
[WhiteFideId "4153472"]
[BlackFideId "12401102"]
[WhiteElo "2469"]
[BlackElo "2125"]
[Result "1-0"]
[Round "09"]
[TimeControl "180+1"]
[Date "2022.04.13"]
[WhiteClock "0:00:09"]
[BlackClock "0:00:54"]

1. d4 {[%clk 0:02:58]}  d5 {[%clk 0:02:57]} 2. c4 {[%clk 0:02:58]}  c6 {[%clk 0:02:57]} 3. Nc3 {[%clk 0:02:56]}  Nf6 {[%clk 0:02:57]} 4. e3 {[%clk 0:02:56]}  g6 {[%clk 0:02:56]} 5. Nf3 {[%clk 0:02:55]}  Bg7 {[%clk 0:02:56]} 6. Be2 {[%clk 0:02:50]}  O-O {[%clk 0:02:55]} 7. O-O {[%clk 0:02:50]}  Be6 {[%clk 0:02:48]} 8. Ng5 {[%clk 0:02:43]}  Bc8 {[%clk 0:02:47]} 9. Qb3 {[%clk 0:02:40]}  a6 {[%clk 0:02:45]} 10. a4 {[%clk 0:02:25]}  Ra7 {[%clk 0:02:44]} 11. a5 {[%clk 0:02:24]}  h6 {[%clk 0:02:42]} 12. Nf3 {[%clk 0:02:23]}  Be6 {[%clk 0:02:42]} 13. cxd5 {[%clk 0:02:02]}  cxd5 {[%clk 0:02:36]} 14. Bd2 {[%clk 0:01:56]}  Nc6 {[%clk 0:02:35]} 15. Na4 {[%clk 0:01:31]}  Ne4 {[%clk 0:02:19]} 16. Be1 {[%clk 0:01:26]}  Bc8 {[%clk 0:01:56]} 17. Nb6 {[%clk 0:01:24]}  Be6 {[%clk 0:01:53]} 18. Rc1 {[%clk 0:00:57]}  f5 {[%clk 0:01:49]} 19. Qa4 {[%clk 0:00:46]}  g5 {[%clk 0:01:44]} 20. Nd2 {[%clk 0:00:41]}  f4 {[%clk 0:01:32]} 21. Nxe4 {[%clk 0:00:40]}  dxe4 {[%clk 0:01:32]} 22. d5 {[%clk 0:00:40]}  Bxd5 {[%clk 0:01:31]} 23. Nxd5 {[%clk 0:00:39]}  Ne5 {[%clk 0:01:27]} 24. Qxe4 {[%clk 0:00:36]}  f3 {[%clk 0:01:21]} 25. gxf3 {[%clk 0:00:35]}  e6 {[%clk 0:01:19]} 26. Nb6 {[%clk 0:00:33]}  g4 {[%clk 0:01:12]} 27. f4 {[%clk 0:00:23]}  Nf3+ {[%clk 0:01:10]} 28. Bxf3 {[%clk 0:00:23]}  gxf3 {[%clk 0:01:11]} 29. Qxf3 {[%clk 0:00:22]}  e5 {[%clk 0:01:08]} 30. Rc8 {[%clk 0:00:15]}  Qe7 {[%clk 0:01:03]} 31. Rxf8+ {[%clk 0:00:13]}  Qxf8 {[%clk 0:01:03]} 32. Qd5+ {[%clk 0:00:13]}  Kh8 {[%clk 0:01:03]} 33. fxe5 {[%clk 0:00:13]}  Qf5 {[%clk 0:01:03]} 34. Bc3 {[%clk 0:00:10]}  Qg4+ {[%clk 0:01:00]} 35. Qg2 {[%clk 0:00:10]}  Qe6 {[%clk 0:01:00]} 36. f4 {[%clk 0:00:08]}  Qf5 {[%clk 0:00:55]} 37. e4 {[%clk 0:00:08]}  Qe6 {[%clk 0:00:54]} 38. f5 {[%clk 0:00:09]} 1-0


[Site "https://www.chess.com"]